[Event "Late-Titled-Tuesday-Blitz-September-12-2023"]
[Site "Chess.com"]
[Date "2023.09.12"]
[Round "7"]
[White "GMBenjaminBok"]
[Black "m_ezat"]
[Result "1-0"]
[WhiteElo "3007"]
[BlackElo "2661"]
[TimeControl "180+1"]
[EndTime "15:10:31 PDT"]
[Termination "GMBenjaminBok won by resignation"]

1. d4 {[%clk 0:03:00.9]} 1... Nf6 {[%clk 0:02:59.7]} 2. c4 {[%clk 0:03:00.4]}
2... e6 {[%clk 0:02:59.8]} 3. Nc3 {[%clk 0:03:00.3]} 3... Bb4 {[%clk 0:02:59.6]}
4. Qc2 {[%clk 0:03:00.9]} 4... O-O {[%clk 0:02:58.5]} 5. a3 {[%clk 0:03:00.9]}
5... Bxc3+ {[%clk 0:02:57.8]} 6. Qxc3 {[%clk 0:03:01.8]} 6... d5 {[%clk
0:02:56.6]} 7. Bg5 {[%clk 0:03:01.8]} 7... h6 {[%clk 0:02:53.5]} 8. Bxf6 {[%clk
0:03:01.5]} 8... Qxf6 {[%clk 0:02:53]} 9. Nf3 {[%clk 0:03:02.4]} 9... c5 {[%clk
0:02:51]} 10. cxd5 {[%clk 0:03:01]} 10... cxd4 {[%clk 0:02:51]} 11. Qxd4 {[%clk
0:03:00.8]} 11... Qxd4 {[%clk 0:02:48.1]} 12. Nxd4 {[%clk 0:03:01.7]} 12... exd5
{[%clk 0:02:48.4]} 13. Rc1 {[%clk 0:03:01.3]} 13... a6 {[%clk 0:02:37.7]} 14. e3
{[%clk 0:02:59.8]} 14... Bd7 {[%clk 0:02:37.2]} 15. Rc7 {[%clk 0:02:57.1]} 15...
Rc8 {[%clk 0:02:32.4]} 16. Rxb7 {[%clk 0:02:50]} 16... Bc6 {[%clk 0:02:26.7]}
17. Rb6 {[%clk 0:02:39]} 17... Bb5 {[%clk 0:02:23]} 18. Nxb5 {[%clk 0:02:23.1]}
18... axb5 {[%clk 0:02:17.6]} 19. Kd2 {[%clk 0:02:22.7]} 19... Nd7 {[%clk
0:02:06]} 20. Rxb5 {[%clk 0:02:22.8]} 20... Nc5 {[%clk 0:02:05.6]} 21. f3 {[%clk
0:02:19.2]} 21... Rab8 {[%clk 0:02:04.8]} 22. Rxb8 {[%clk 0:02:17.6]} 22... Rxb8
{[%clk 0:02:03.2]} 23. b4 {[%clk 0:02:17.8]} 23... Na4 {[%clk 0:02:02.9]} 24.
Bd3 {[%clk 0:02:13.6]} 24... Ra8 {[%clk 0:01:58.3]} 25. Ra1 {[%clk 0:02:07.3]}
25... Nb6 {[%clk 0:01:57.3]} 26. Bb5 {[%clk 0:02:05.1]} 26... Kf8 {[%clk
0:01:55.5]} 27. a4 {[%clk 0:02:04.9]} 27... Ke7 {[%clk 0:01:55.5]} 28. a5 {[%clk
0:02:04.7]} 28... Kd6 {[%clk 0:01:51.1]} 29. Rc1 {[%clk 0:02:01.9]} 29... Nc8
{[%clk 0:01:42.1]} 30. Rc6+ {[%clk 0:02:01.2]} 30... Ke7 {[%clk 0:01:42]} 31.
Rc7+ {[%clk 0:02:01]} 31... Kf6 {[%clk 0:01:37]} 32. Bc6 {[%clk 0:02:00]} 32...
Rb8 {[%clk 0:01:37]} 33. Rb7 {[%clk 0:01:58.8]} 1-0

[Event "Late-Titled-Tuesday-Blitz-September-12-2023"]
[Site "Chess.com"]
[Date "2023.09.12"]
[Round "7"]
[White "dropstoneDP"]
[Black "Iball95"]
[Result "1-0"]
[WhiteElo "3028"]
[BlackElo "2794"]
[TimeControl "180+1"]
[EndTime "15:11:00 PDT"]
[Termination "dropstoneDP won by checkmate"]

1. e4 {[%clk 0:03:00.9]} 1... c5 {[%clk 0:03:00.4]} 2. Nf3 {[%clk 0:03:01.3]}
2... e6 {[%clk 0:03:01.1]} 3. d4 {[%clk 0:03:01.4]} 3... cxd4 {[%clk 0:03:02]}
4. Nxd4 {[%clk 0:03:02.1]} 4... Nf6 {[%clk 0:03:02.9]} 5. Nc3 {[%clk 0:03:02.5]}
5... Nc6 {[%clk 0:03:03.5]} 6. Nxc6 {[%clk 0:03:02.8]} 6... bxc6 {[%clk
0:03:03.8]} 7. e5 {[%clk 0:03:03.4]} 7... Nd5 {[%clk 0:03:04.4]} 8. Ne4 {[%clk
0:03:04.1]} 8... f5 {[%clk 0:03:05.1]} 9. Nd6+ {[%clk 0:02:59.3]} 9... Bxd6
{[%clk 0:03:04.3]} 10. exd6 {[%clk 0:03:00.2]} 10... O-O {[%clk 0:03:04.1]} 11.
c4 {[%clk 0:03:00]} 11... Nf6 {[%clk 0:03:03.8]} 12. Be2 {[%clk 0:02:59.4]}
12... Qb6 {[%clk 0:03:01.6]} 13. O-O {[%clk 0:02:58.5]} 13... c5 {[%clk
0:03:01.6]} 14. Be3 {[%clk 0:02:56.8]} 14... Qxb2 {[%clk 0:02:57.6]} 15. Rb1
{[%clk 0:02:55.7]} 15... Qe5 {[%clk 0:02:48.7]} 16. Bf3 {[%clk 0:02:37.2]} 16...
Ne4 {[%clk 0:02:48.4]} 17. Qd3 {[%clk 0:02:16.3]} 17... Ba6 {[%clk 0:02:43.4]}
18. Rfc1 {[%clk 0:02:10.5]} 18... Rab8 {[%clk 0:02:43.3]} 19. Rxb8 {[%clk
0:02:10.1]} 19... Rxb8 {[%clk 0:02:43.9]} 20. Bxe4 {[%clk 0:02:08.9]} 20... fxe4
{[%clk 0:02:40.8]} 21. Qa3 {[%clk 0:02:09]} 21... Qxd6 {[%clk 0:02:33]} 22. Bxc5
{[%clk 0:02:08.3]} 22... Qd3 {[%clk 0:02:05.9]} 23. Qxa6 {[%clk 0:01:55.4]}
23... Rb1 {[%clk 0:02:05.5]} 24. Qc8+ {[%clk 0:01:55.2]} 24... Kf7 {[%clk
0:02:03.6]} 25. Qf8+ {[%clk 0:01:55.8]} 25... Kg6 {[%clk 0:02:03.7]} 26. Qe8+
{[%clk 0:01:55.5]} 26... Kf6 {[%clk 0:01:09.6]} 27. Be7+ {[%clk 0:01:54.1]}
27... Ke5 {[%clk 0:00:57.5]} 28. Qh5+ {[%clk 0:01:54.2]} 28... g5 {[%clk
0:00:54.4]} 29. Qxg5+ {[%clk 0:01:53.9]} 29... Kd4 {[%clk 0:00:55.3]} 30. Bc5#
{[%clk 0:01:54]} 1-0

[Event "Late-Titled-Tuesday-Blitz-September-12-2023"]
[Site "Chess.com"]
[Date "2023.09.12"]
[Round "7"]
[White "Andrej2004"]
[Black "Marielchessy"]
[Result "1-0"]
[WhiteElo "2539"]
[BlackElo "2318"]
[TimeControl "180+1"]
[EndTime "15:11:10 PDT"]
[Termination "Andrej2004 won by resignation"]

1. Nf3 {[%clk 0:02:55.7]} 1... Nf6 {[%clk 0:02:56.9]} 2. c4 {[%clk 0:02:55.1]}
2... g6 {[%clk 0:02:56.4]} 3. b3 {[%clk 0:02:54.6]} 3... Bg7 {[%clk 0:02:56.7]}
4. Bb2 {[%clk 0:02:55.2]} 4... d6 {[%clk 0:02:57.2]} 5. g3 {[%clk 0:02:54.8]}
5... O-O {[%clk 0:02:57.6]} 6. Bg2 {[%clk 0:02:55.1]} 6... e5 {[%clk 0:02:57.6]}
7. d3 {[%clk 0:02:54.6]} 7... Nc6 {[%clk 0:02:58.1]} 8. Nc3 {[%clk 0:02:51.2]}
8... Be6 {[%clk 0:02:57.8]} 9. O-O {[%clk 0:02:50.6]} 9... h6 {[%clk 0:02:58.3]}
10. a3 {[%clk 0:02:49.9]} 10... Qd7 {[%clk 0:02:58.8]} 11. b4 {[%clk 0:02:49.6]}
11... Bh3 {[%clk 0:02:58.7]} 12. b5 {[%clk 0:02:46.9]} 12... Ne7 {[%clk
0:02:58.7]} 13. a4 {[%clk 0:02:46]} 13... Bxg2 {[%clk 0:02:50]} 14. Kxg2 {[%clk
0:02:46.9]} 14... e4 {[%clk 0:02:47.5]} 15. Nxe4 {[%clk 0:02:38.3]} 15... Nxe4
{[%clk 0:02:46.8]} 16. Bxg7 {[%clk 0:02:38.1]} 16... Nxf2 {[%clk 0:02:44.2]} 17.
Rxf2 {[%clk 0:02:37.3]} 17... Kxg7 {[%clk 0:02:44.6]} 18. Nd4 {[%clk 0:02:30.5]}
18... c5 {[%clk 0:02:43.6]} 19. bxc6 {[%clk 0:02:23.3]} 19... bxc6 {[%clk
0:02:43.5]} 20. Qd2 {[%clk 0:02:22.3]} 20... c5 {[%clk 0:02:38.8]} 21. Nb5
{[%clk 0:02:19.1]} 21... a6 {[%clk 0:02:37.9]} 22. Qb2+ {[%clk 0:02:16.3]} 22...
f6 {[%clk 0:02:37.7]} 23. Nc3 {[%clk 0:02:16.4]} 23... Rab8 {[%clk 0:02:37.7]}
24. Qd2 {[%clk 0:02:16]} 24... Rfe8 {[%clk 0:02:37]} 25. Raf1 {[%clk 0:02:13.7]}
25... Nf5 {[%clk 0:02:36.8]} 26. e4 {[%clk 0:02:11.6]} 26... Nd4 {[%clk
0:02:36]} 27. Rxf6 {[%clk 0:02:10.3]} 27... Re7 {[%clk 0:02:34.5]} 28. Nd5
{[%clk 0:02:09.5]} 28... Rbe8 {[%clk 0:02:15]} 29. Nxe7 {[%clk 0:02:00.8]} 29...
Rxe7 {[%clk 0:02:14.4]} 30. Qf2 {[%clk 0:02:00.7]} 30... h5 {[%clk 0:02:04.5]}
31. Rf8 {[%clk 0:01:59.7]} 31... Qe6 {[%clk 0:02:03.6]} 32. Rd8 {[%clk
0:01:55.4]} 32... Qe5 {[%clk 0:01:30.3]} 33. Qf8+ {[%clk 0:01:50.5]} 33... Kh7
{[%clk 0:01:30.4]} 34. Rf7+ {[%clk 0:01:49.7]} 34... Rxf7 {[%clk 0:01:28.2]} 35.
Qxf7+ {[%clk 0:01:50.6]} 35... Kh6 {[%clk 0:01:25.8]} 36. Qf4+ {[%clk
0:01:50.6]} 36... Qxf4 {[%clk 0:01:25.3]} 37. gxf4 {[%clk 0:01:51.5]} 37... h4
{[%clk 0:01:22.6]} 38. Rxd6 {[%clk 0:01:49]} 38... Kh5 {[%clk 0:01:21.9]} 39.
Rxd4 {[%clk 0:01:46.7]} 39... cxd4 {[%clk 0:01:21.3]} 40. c5 {[%clk 0:01:47]}
1-0

[Event "Late-Titled-Tuesday-Blitz-September-12-2023"]
[Site "Chess.com"]
[Date "2023.09.12"]
[Round "7"]
[White "chessdjw"]
[Black "rdarruda"]
[Result "1-0"]
[WhiteElo "2730"]
[BlackElo "2518"]
[TimeControl "180+1"]
[EndTime "15:11:22 PDT"]
[Termination "chessdjw won by checkmate"]

1. e4 {[%clk 0:03:00.9]} 1... c5 {[%clk 0:02:25.8]} 2. Nf3 {[%clk 0:02:58]} 2...
Nc6 {[%clk 0:02:25.3]} 3. Bb5 {[%clk 0:02:56.9]} 3... g6 {[%clk 0:02:24.3]} 4.
O-O {[%clk 0:02:54]} 4... Bg7 {[%clk 0:02:24]} 5. Re1 {[%clk 0:02:53.4]} 5...
Nf6 {[%clk 0:02:23.5]} 6. Bxc6 {[%clk 0:02:47.4]} 6... bxc6 {[%clk 0:02:22.6]}
7. e5 {[%clk 0:02:46.3]} 7... Nd5 {[%clk 0:02:22.2]} 8. c4 {[%clk 0:02:46.2]}
8... Nc7 {[%clk 0:02:20.7]} 9. d4 {[%clk 0:02:46.4]} 9... cxd4 {[%clk
0:02:20.3]} 10. Qxd4 {[%clk 0:02:47.3]} 10... O-O {[%clk 0:02:19.5]} 11. Qh4
{[%clk 0:02:46.5]} 11... Ne6 {[%clk 0:02:18]} 12. Bh6 {[%clk 0:02:39.1]} 12...
d6 {[%clk 0:02:15.6]} 13. Nc3 {[%clk 0:02:36.7]} 13... dxe5 {[%clk 0:02:00]} 14.
Bxg7 {[%clk 0:02:30.9]} 14... Kxg7 {[%clk 0:02:00.9]} 15. Nxe5 {[%clk
0:02:31.1]} 15... Qc7 {[%clk 0:01:59.7]} 16. Rad1 {[%clk 0:02:22]} 16... h6
{[%clk 0:01:49.3]} 17. Ng4 {[%clk 0:02:10.4]} 17... Rh8 {[%clk 0:01:45.1]} 18.
Ne4 {[%clk 0:01:54.8]} 18... Qf4 {[%clk 0:01:33.6]} 19. Qxe7 {[%clk 0:01:33.5]}
19... Qxg4 {[%clk 0:01:23]} 20. Qf6+ {[%clk 0:01:33.6]} 20... Kg8 {[%clk
0:01:20.7]} 21. Ng5 {[%clk 0:01:17]} 21... Qf5 {[%clk 0:00:55]} 22. Rd8+ {[%clk
0:01:12.9]} 22... Nxd8 {[%clk 0:00:49.8]} 23. Re8# {[%clk 0:01:12.8]} 1-0

[Event "Late-Titled-Tuesday-Blitz-September-12-2023"]
[Site "Chess.com"]
[Date "2023.09.12"]
[Round "7"]
[White "Bala-Afiada"]
[Black "IngOscarArdila"]
[Result "1-0"]
[WhiteElo "1966"]
[BlackElo "2255"]
[TimeControl "180+1"]
[EndTime "15:11:48 PDT"]
[Termination "Bala-Afiada won by resignation"]

1. d4 {[%clk 0:02:55.9]} 1... Nf6 {[%clk 0:02:32]} 2. c4 {[%clk 0:02:47.8]} 2...
e6 {[%clk 0:02:31.7]} 3. g3 {[%clk 0:02:48]} 3... Bb4+ {[%clk 0:02:31.3]} 4. Bd2
{[%clk 0:02:47.6]} 4... Qe7 {[%clk 0:02:30.6]} 5. Bg2 {[%clk 0:02:47.3]} 5...
O-O {[%clk 0:02:30.1]} 6. a3 {[%clk 0:02:47]} 6... Bxd2+ {[%clk 0:02:29.7]} 7.
Nxd2 {[%clk 0:02:47.9]} 7... d6 {[%clk 0:02:29.9]} 8. e4 {[%clk 0:02:48.2]} 8...
e5 {[%clk 0:02:29.5]} 9. d5 {[%clk 0:02:46.7]} 9... Nbd7 {[%clk 0:02:28.3]} 10.
b4 {[%clk 0:02:46.4]} 10... a5 {[%clk 0:02:27.8]} 11. Ngf3 {[%clk 0:02:40.5]}
11... Re8 {[%clk 0:02:12.8]} 12. O-O {[%clk 0:02:38.6]} 12... Nf8 {[%clk
0:02:11.4]} 13. Qc2 {[%clk 0:02:36.9]} 13... Bg4 {[%clk 0:02:05.5]} 14. c5
{[%clk 0:02:34]} 14... N8d7 {[%clk 0:01:56.9]} 15. cxd6 {[%clk 0:02:08]} 15...
cxd6 {[%clk 0:01:56.2]} 16. Rfc1 {[%clk 0:02:06.5]} 16... Nb6 {[%clk 0:01:39.9]}
17. bxa5 {[%clk 0:01:54.4]} 17... Rxa5 {[%clk 0:01:31.5]} 18. Qc7 {[%clk
0:01:54.2]} 18... Ra6 {[%clk 0:01:14.2]} 19. Qxe7 {[%clk 0:01:38.9]} 19... Rxe7
{[%clk 0:01:13.8]} 20. Rab1 {[%clk 0:01:39.4]} 20... Nfd7 {[%clk 0:00:48.6]} 21.
h3 {[%clk 0:01:17.5]} 21... Bxf3 {[%clk 0:00:45.4]} 22. Bxf3 {[%clk 0:01:18.4]}
22... Nc5 {[%clk 0:00:45]} 23. Be2 {[%clk 0:01:09.1]} 23... Nba4 {[%clk
0:00:40]} 24. Bxa6 {[%clk 0:01:07.9]} 24... bxa6 {[%clk 0:00:40.9]} 25. Rb8+
{[%clk 0:01:05.3]} 1-0

[Event "Late-Titled-Tuesday-Blitz-September-12-2023"]
[Site "Chess.com"]
[Date "2023.09.12"]
[Round "7"]
[White "szachmistrz2500"]
[Black "Orest_Vovk"]
[Result "0-1"]
[WhiteElo "2453"]
[BlackElo "2590"]
[TimeControl "180+1"]
[EndTime "15:11:53 PDT"]
[Termination "Orest_Vovk won by resignation"]

1. Nf3 {[%clk 0:03:00.9]} 1... h6 {[%clk 0:02:53.8]} 2. g3 {[%clk 0:02:59.8]}
2... g5 {[%clk 0:02:53.8]} 3. Bg2 {[%clk 0:02:59.9]} 3... Bg7 {[%clk 0:02:53.5]}
4. O-O {[%clk 0:02:59.6]} 4... g4 {[%clk 0:02:51]} 5. Ne1 {[%clk 0:02:50.6]}
5... h5 {[%clk 0:02:48.7]} 6. e4 {[%clk 0:02:49.1]} 6... d6 {[%clk 0:02:43.6]}
7. d4 {[%clk 0:02:48.6]} 7... h4 {[%clk 0:02:43.2]} 8. Nc3 {[%clk 0:02:45.8]}
8... c6 {[%clk 0:02:37]} 9. Be3 {[%clk 0:02:45.1]} 9... Qa5 {[%clk 0:02:36.4]}
10. d5 {[%clk 0:02:37.8]} 10... c5 {[%clk 0:02:33]} 11. Qd2 {[%clk 0:02:33.5]}
11... Bxc3 {[%clk 0:02:27.6]} 12. bxc3 {[%clk 0:02:31.2]} 12... Nf6 {[%clk
0:02:26.7]} 13. Nd3 {[%clk 0:02:26.9]} 13... Nbd7 {[%clk 0:02:23.7]} 14. c4
{[%clk 0:02:22.2]} 14... Qxd2 {[%clk 0:02:12.7]} 15. Bxd2 {[%clk 0:02:22.2]}
15... Nb6 {[%clk 0:02:12.7]} 16. Nb2 {[%clk 0:02:21.9]} 16... Nfd7 {[%clk
0:02:08.1]} 17. a4 {[%clk 0:02:17]} 17... Ne5 {[%clk 0:02:06.8]} 18. Bc3 {[%clk
0:02:17.3]} 18... f6 {[%clk 0:01:52.8]} 19. a5 {[%clk 0:02:16.9]} 19... Nbxc4
{[%clk 0:01:49.5]} 20. Nxc4 {[%clk 0:02:09.6]} 20... Nxc4 {[%clk 0:01:48.8]} 21.
Rfb1 {[%clk 0:02:09.7]} 21... Kd8 {[%clk 0:01:39.4]} 22. Bf1 {[%clk 0:02:08.8]}
22... Ne5 {[%clk 0:01:37.9]} 23. Bxe5 {[%clk 0:01:57.4]} 23... fxe5 {[%clk
0:01:36.5]} 24. Rb3 {[%clk 0:01:53.8]} 24... Kc7 {[%clk 0:01:34]} 25. Rab1
{[%clk 0:01:54]} 25... Rb8 {[%clk 0:01:33.8]} 26. Ba6 {[%clk 0:01:51.6]} 26...
hxg3 {[%clk 0:01:25.1]} 27. hxg3 {[%clk 0:01:50.6]} 27... b6 {[%clk 0:01:23.7]}
28. axb6+ {[%clk 0:01:46.8]} 28... Rxb6 {[%clk 0:01:20.9]} 29. Bc4 {[%clk
0:01:35.4]} 29... Bd7 {[%clk 0:01:11.5]} 30. Ra1 {[%clk 0:01:33.4]} 30... Rxb3
{[%clk 0:01:10.3]} 31. cxb3 {[%clk 0:01:33.3]} 31... Ra8 {[%clk 0:01:10.8]} 32.
Kg2 {[%clk 0:01:26.2]} 32... a5 {[%clk 0:01:10]} 33. Rh1 {[%clk 0:01:21.1]}
33... a4 {[%clk 0:01:08]} 34. bxa4 {[%clk 0:01:21.2]} 34... Rxa4 {[%clk
0:01:08.1]} 35. Be2 {[%clk 0:01:21.2]} 35... Rxe4 {[%clk 0:01:07]} 36. Kf1
{[%clk 0:01:20.1]} 36... c4 {[%clk 0:01:00.4]} 37. Ke1 {[%clk 0:01:16.7]} 37...
c3 {[%clk 0:00:59]} 38. Kd1 {[%clk 0:01:16.1]} 38... Ba4+ {[%clk 0:00:58.9]} 39.
Ke1 {[%clk 0:01:14.2]} 39... Bb5 {[%clk 0:00:58.9]} 0-1

[Event "Late-Titled-Tuesday-Blitz-September-12-2023"]
[Site "Chess.com"]
[Date "2023.09.12"]
[Round "7"]
[White "FairChess_on_YouTube"]
[Black "bascheyaro"]
[Result "1-0"]
[WhiteElo "3063"]
[BlackElo "2833"]
[TimeControl "180+1"]
[EndTime "15:12:25 PDT"]
[Termination "FairChess_on_YouTube won by resignation"]

1. c4 {[%clk 0:03:00.9]} 1... e6 {[%clk 0:03:00.1]} 2. Nc3 {[%clk 0:03:01.4]}
2... d5 {[%clk 0:03:00.5]} 3. d4 {[%clk 0:03:01.5]} 3... c6 {[%clk 0:02:59]} 4.
e4 {[%clk 0:02:59.7]} 4... dxe4 {[%clk 0:02:58.3]} 5. Nxe4 {[%clk 0:03:00.6]}
5... Nd7 {[%clk 0:02:57.7]} 6. Nf3 {[%clk 0:02:58.4]} 6... Ngf6 {[%clk
0:02:57.3]} 7. Bd3 {[%clk 0:02:58.3]} 7... Nxe4 {[%clk 0:02:48.8]} 8. Bxe4
{[%clk 0:02:59.2]} 8... Bb4+ {[%clk 0:02:49.1]} 9. Bd2 {[%clk 0:02:58.6]} 9...
Bxd2+ {[%clk 0:02:49.2]} 10. Qxd2 {[%clk 0:02:59.5]} 10... O-O {[%clk
0:02:40.7]} 11. O-O-O {[%clk 0:02:54.6]} 11... Nf6 {[%clk 0:02:06.2]} 12. Bc2
{[%clk 0:02:54.5]} 12... b5 {[%clk 0:02:04.2]} 13. c5 {[%clk 0:02:53.9]} 13...
a5 {[%clk 0:02:03.7]} 14. Ne5 {[%clk 0:02:51.9]} 14... Bb7 {[%clk 0:01:55.1]}
15. Qf4 {[%clk 0:02:48.6]} 15... a4 {[%clk 0:01:46.7]} 16. Rd3 {[%clk 0:02:44]}
16... Nd5 {[%clk 0:01:36.7]} 17. Qd2 {[%clk 0:02:36.6]} 17... b4 {[%clk
0:01:32]} 18. Rh3 {[%clk 0:02:35.9]} 18... f5 {[%clk 0:01:31.4]} 19. Re1 {[%clk
0:02:25.1]} 19... b3 {[%clk 0:01:31.3]} 20. axb3 {[%clk 0:02:24.4]} 20... axb3
{[%clk 0:01:31.9]} 21. Bxb3 {[%clk 0:02:23.1]} 21... Ra1+ {[%clk 0:00:57.7]} 22.
Kc2 {[%clk 0:02:23.2]} 22... Rxe1 {[%clk 0:00:58.4]} 23. Qxe1 {[%clk 0:02:24.1]}
23... Nf4 {[%clk 0:00:59]} 24. Qe3 {[%clk 0:02:19.7]} 24... Nd5 {[%clk
0:00:38.9]} 25. Qg3 {[%clk 0:02:06.8]} 25... Nc7 {[%clk 0:00:22.6]} 26. Qh4
{[%clk 0:01:56.1]} 26... Qxh4 {[%clk 0:00:22.4]} 27. Rxh4 {[%clk 0:01:57]} 27...
g6 {[%clk 0:00:20.3]} 28. Bc4 {[%clk 0:01:53.1]} 28... Kg7 {[%clk 0:00:19]} 29.
Rh3 {[%clk 0:01:53]} 29... Rd8 {[%clk 0:00:16.9]} 30. Rb3 {[%clk 0:01:52.9]}
30... Ba8 {[%clk 0:00:17.2]} 31. Ra3 {[%clk 0:01:49.5]} 31... Rxd4 {[%clk
0:00:14.3]} 32. Kc3 {[%clk 0:01:47.5]} 32... Re4 {[%clk 0:00:12.2]} 33. Ra7
{[%clk 0:01:42]} 33... Rxe5 {[%clk 0:00:10.7]} 34. Rxc7+ {[%clk 0:01:42.5]}
34... Kf6 {[%clk 0:00:11.5]} 35. Ra7 {[%clk 0:01:43.1]} 35... Rxc5 {[%clk
0:00:04.9]} 36. Rxa8 {[%clk 0:01:43.5]} 36... Re5 {[%clk 0:00:05.5]} 37. Rc8
{[%clk 0:01:39.9]} 1-0

[Event "Late-Titled-Tuesday-Blitz-September-12-2023"]
[Site "Chess.com"]
[Date "2023.09.12"]
[Round "7"]
[White "MarcoRiehle"]
[Black "ChristopherYoo"]
[Result "0-1"]
[WhiteElo "2783"]
[BlackElo "3016"]
[TimeControl "180+1"]
[EndTime "15:12:39 PDT"]
[Termination "ChristopherYoo won by resignation"]

1. e4 {[%clk 0:03:00]} 1... c5 {[%clk 0:02:54.7]} 2. a3 {[%clk 0:03:00.2]} 2...
g6 {[%clk 0:02:48.8]} 3. h4 {[%clk 0:02:59.4]} 3... h5 {[%clk 0:02:47.5]} 4. Nc3
{[%clk 0:02:57]} 4... Bg7 {[%clk 0:02:46.9]} 5. Bc4 {[%clk 0:02:56.3]} 5... Nc6
{[%clk 0:02:44]} 6. d3 {[%clk 0:02:56.1]} 6... d6 {[%clk 0:02:41.1]} 7. Nf3
{[%clk 0:02:53.2]} 7... Bg4 {[%clk 0:02:38.3]} 8. Bg5 {[%clk 0:02:50]} 8... Nd4
{[%clk 0:02:25.9]} 9. Be3 {[%clk 0:02:44.4]} 9... Bxf3 {[%clk 0:02:23.5]} 10.
gxf3 {[%clk 0:02:45.2]} 10... e6 {[%clk 0:02:20.3]} 11. Bxd4 {[%clk 0:02:45]}
11... Bxd4 {[%clk 0:02:20.2]} 12. Qd2 {[%clk 0:02:43.1]} 12... Ne7 {[%clk
0:02:14.8]} 13. O-O-O {[%clk 0:02:40.9]} 13... a6 {[%clk 0:02:13.4]} 14. f4
{[%clk 0:02:37.4]} 14... b5 {[%clk 0:02:13]} 15. Bb3 {[%clk 0:02:37.3]} 15...
Qa5 {[%clk 0:01:58.5]} 16. Kb1 {[%clk 0:02:27.5]} 16... Rb8 {[%clk 0:01:24.1]}
17. Rde1 {[%clk 0:01:42.2]} 17... c4 {[%clk 0:01:12.7]} 18. Ba2 {[%clk
0:01:28.9]} 18... b4 {[%clk 0:01:06.3]} 19. Ne2 {[%clk 0:01:19.4]} 19... Bc3
{[%clk 0:00:50.2]} 20. Qe3 {[%clk 0:00:54]} 20... bxa3 {[%clk 0:00:46.4]} 21.
Nxc3 {[%clk 0:00:52.2]} 21... Rxb2+ {[%clk 0:00:44.1]} 22. Kc1 {[%clk 0:00:52]}
22... Qxc3 {[%clk 0:00:44.3]} 23. Qd2 {[%clk 0:00:51.9]} 23... Qxd2+ {[%clk
0:00:41.8]} 24. Kxd2 {[%clk 0:00:52.6]} 24... Rxa2 {[%clk 0:00:42.1]} 25. dxc4
{[%clk 0:00:52.7]} 25... O-O {[%clk 0:00:41.4]} 26. Kc3 {[%clk 0:00:49]} 26...
Rb8 {[%clk 0:00:40.6]} 27. Rd1 {[%clk 0:00:48.7]} 27... Rbb2 {[%clk 0:00:40.1]}
28. Rxd6 {[%clk 0:00:46.4]} 28... Rxc2+ {[%clk 0:00:39.2]} 29. Kb3 {[%clk
0:00:46.4]} 29... Rcb2+ {[%clk 0:00:39.4]} 30. Kc3 {[%clk 0:00:44.8]} 30... Rxf2
{[%clk 0:00:39.9]} 31. f5 {[%clk 0:00:43]} 31... Rf3+ {[%clk 0:00:39]} 32. Kb4
{[%clk 0:00:42.1]} 32... Rb2+ {[%clk 0:00:38.7]} 33. Kc5 {[%clk 0:00:40.5]}
33... a2 {[%clk 0:00:38.6]} 34. Ra1 {[%clk 0:00:39.9]} 34... gxf5 {[%clk
0:00:38.6]} 35. exf5 {[%clk 0:00:39.9]} 35... Rxf5+ {[%clk 0:00:38.3]} 36. Kd4
{[%clk 0:00:39.4]} 36... Ra5 {[%clk 0:00:37.4]} 0-1

[Event "Late-Titled-Tuesday-Blitz-September-12-2023"]
[Site "Chess.com"]
[Date "2023.09.12"]
[Round "7"]
[White "DuleMudule"]
[Black "Alexei_Gubajdullin"]
[Result "0-1"]
[WhiteElo "2757"]
[BlackElo "2618"]
[TimeControl "180+1"]
[EndTime "15:12:39 PDT"]
[Termination "Alexei_Gubajdullin won by resignation"]

1. d4 {[%clk 0:03:00.9]} 1... Nf6 {[%clk 0:02:54.7]} 2. Bg5 {[%clk 0:03:00.7]}
2... e6 {[%clk 0:02:52.9]} 3. e3 {[%clk 0:03:00.3]} 3... h6 {[%clk 0:02:52.2]}
4. Bh4 {[%clk 0:02:59.8]} 4... d6 {[%clk 0:02:52.4]} 5. Nd2 {[%clk 0:02:59.8]}
5... Nc6 {[%clk 0:02:44.6]} 6. c3 {[%clk 0:02:56.5]} 6... Bd7 {[%clk 0:02:41.8]}
7. f4 {[%clk 0:02:55.2]} 7... g5 {[%clk 0:02:32.8]} 8. fxg5 {[%clk 0:02:49.4]}
8... Nd5 {[%clk 0:02:31.9]} 9. Qf3 {[%clk 0:02:35.2]} 9... hxg5 {[%clk
0:02:29.7]} 10. Bg3 {[%clk 0:02:35.4]} 10... g4 {[%clk 0:02:26.1]} 11. Qe2
{[%clk 0:02:14.6]} 11... Bh6 {[%clk 0:02:15.3]} 12. Bf2 {[%clk 0:02:13.3]} 12...
Qg5 {[%clk 0:02:08]} 13. Ne4 {[%clk 0:02:09.2]} 13... Qg6 {[%clk 0:02:02.8]} 14.
Ng3 {[%clk 0:01:51.6]} 14... O-O-O {[%clk 0:01:48.7]} 15. O-O-O {[%clk 0:01:47]}
15... f5 {[%clk 0:01:39.6]} 16. Qd3 {[%clk 0:01:36.8]} 16... Qg5 {[%clk
0:01:37.4]} 17. Re1 {[%clk 0:01:30.6]} 17... e5 {[%clk 0:01:23.3]} 18. Kb1
{[%clk 0:01:08.8]} 18... exd4 {[%clk 0:01:02]} 19. cxd4 {[%clk 0:01:00.9]} 19...
f4 {[%clk 0:00:58.2]} 20. Ne4 {[%clk 0:00:44.4]} 20... Qg6 {[%clk 0:00:57.3]}
21. exf4 {[%clk 0:00:32.8]} 21... Nxf4 {[%clk 0:00:56.5]} 22. Qc2 {[%clk
0:00:32.7]} 22... Bf5 {[%clk 0:00:53.7]} 23. g3 {[%clk 0:00:15.9]} 23... Nb4
{[%clk 0:00:50]} 24. Nxd6+ {[%clk 0:00:13]} 24... Rxd6 {[%clk 0:00:48.7]} 0-1